bitfinex-derivatives/quotes_ETHF0:USTF0_20250712
["timestamp","ask_amount","ask_price","bid_price","bid_amount"]
[1752289016776,2.22396,2958.3,2958.2,2.5778]
[1752289023077,2.22396,2958.3,2958.2,3.25358]
[1752289023377,0.986,2958.3,2958.2,3.25358]
[1752289023973,0.9934,2958.9,2958.6,2.4843]
[1752289024278,2.23127,2958.7,2958.6,2.4843]
[1752289024479,1.88515716,2958.7,2958.6,3.15999]
[1752289024680,1.88506434,2958.7,2958.6,3.15999]
[1752289024881,2.56073434,2958.7,2958.6,3.15999]
[1752289025179,1.88506434,2958.7,2958.6,3.15999]
[1752289025481,0.89166434,2958.7,2958.6,3.15999]
[1752289025682,4.87681,2959.0,2958.8,0.67564]
[1752289025884,3.88342,2959.0,2958.9,1.5538]
[1752289026180,4.77497835,2959.0,2958.9,2.4843]
[1752289026382,6.33057835,2959.0,2958.9,2.4843]
[1752289027380,6.33057835,2959.0,2958.9,1.5538]
[1752289027576,6.68197835,2959.0,2958.9,1.5538]
[1752289029580,6.00635835,2959.0,2958.6,0.67568]
[1752289029785,6.00635835,2959.0,2958.6,1.5376]
[1752289029786,1.5556,2958.7,2958.6,1.5376]
[1752289030085,2.23128,2958.7,2958.6,1.5376]
[1752289030382,2.23128,2958.7,2958.6,2.4843]
[1752289030784,2.23128,2958.7,2958.6,3.15999]
[1752289030980,0.9934,2958.7,2958.6,2.4843]
[1752289031485,1.66907,2958.7,2958.6,2.4843]
[1752289033185,0.9934,2958.7,2958.6,2.4843]
[1752289033785,0.9934,2958.7,2958.6,3.15999]
[1752289034484,0.67566,2958.8,2958.6,3.15999]
[1752289034687,0.67564,2958.9,2958.6,1.28279]
[1752289034987,2.56108647,2958.8,2958.7,2.445]
[1752289035185,1.88543647,2958.8,2958.7,1.5145]
[1752289035390,1.88543647,2958.8,2958.7,3.11997]
[1752289036290,24.72042651,2959.3,2958.7,1.28257]
[1752289036487,0.9917,2958.8,2958.7,1.5145]
[1752289036685,1.88366558,2958.8,2958.7,1.5145]
[1752289036991,1.88366558,2958.8,2958.7,3.11997]
[1752289037185,0.9917,2958.8,2958.7,3.11997]
[1752289041591,0.6756,2959.0,2958.7,3.11997]
[1752289041892,2.22333,2959.3,2959.2,2.4443]
[1752289042086,3.46277082,2959.3,2959.2,2.4443]
[1752289042287,0.5561,2959.0,2958.6,3.88348]
[1752289042488,2.22343,2958.9,2958.8,0.6069]
[1752289042693,2.22343,2958.9,2958.8,1.5367]
[1752289042894,2.22343,2958.9,2958.8,2.4443]
[1752289043095,3.11532816,2958.9,2958.8,2.4443]
[1752289046401,3.11553301,2958.9,2958.8,2.4443]
[1752289048800,3.11553301,2958.9,2958.2,1.28355225]
[1752289048801,0.67565,2958.8,2958.2,1.28355225]
[1752289049097,4.8109,2958.7,2958.6,0.6069]
[1752289049297,4.8109,2958.7,2958.6,1.28258]
[1752289049598,5.8026,2958.7,2958.6,1.28258]
[1752289049796,7.37054297,2958.7,2958.6,0.6069]
[1752289049995,3.27053,2958.5,2958.4,0.6069]
[1752289050199,4.16280297,2958.5,2958.4,0.6069]
[1752289050899,4.16280297,2958.5,2958.4,1.5145]
[1752289051998,3.27058,2958.2,2958.1,0.6069]
[1752289052197,6.47838,2958.2,2958.1,0.6069]
[1752289052799,6.47838,2958.2,2958.1,1.5145]
[1752289053100,5.8026,2958.2,2958.1,2.19031]
[1752289053300,6.47838,2958.2,2958.1,1.5145]
[1752289054000,5.8026,2958.2,2958.1,1.5145]
[1752289054504,5.8026,2958.2,2958.1,2.19031]
[1752289056294,5.8026,2958.2,2958.1,3.12011]
[1752289058001,2.5948,2958.5,2958.4,1.28264]
[1752289058200,3.48575442,2958.5,2958.4,3.12004]
[1752289058601,3.48575442,2958.5,2958.4,2.19024]
[1752289062008,4.16146442,2958.5,2958.4,1.5145]
[1752289063508,4.16146442,2958.5,2958.4,2.19024]
[1752289063709,4.16146442,2958.5,2958.4,1.5145]
[1752289064609,2.21906442,2958.5,2958.3,1.58285]
[1752289064816,2.5383,2958.4,2958.3,1.58285]
[1752289065011,2.5383,2958.4,2958.3,2.23545]
[1752289065908,2.5383,2958.4,2958.3,1.5597]
[1752289066211,4.10432787,2958.4,2958.3,1.5597]
[1752289066406,1.29648,2958.2,2958.1,1.5597]
[1752289066611,5.6602,2958.2,2958.1,2.23551]
[1752289066911,6.33598,2958.2,2958.1,2.23551]
[1752289067612,6.33598,2958.2,2958.1,1.5597]
[1752289069505,1.29653,2958.0,2957.9,0.65767434]
[1752289069711,3.12823,2958.0,2957.9,1.56477434]
[1752289070213,3.12823,2958.0,2957.9,2.24062434]
[1752289070410,3.12823,2958.0,2957.9,1.56477434]
[1752289071513,3.12823,2958.0,2957.9,2.24062434]
[1752289071712,2.4524,2958.0,2957.9,2.24062434]
[1752289072207,3.12823,2958.0,2957.9,2.24062434]
[1752289072407,3.12823,2958.0,2957.9,1.56477434]
[1752289073511,3.12823,2958.0,2957.9,2.24062434]
[1752289073713,2.4524,2958.0,2957.9,2.24062434]
[1752289074210,2.4524,2958.0,2957.9,3.18022434]
[1752289077022,0.9058,2958.0,2957.9,3.18022434]
[1752289077711,3.2078,2958.2,2958.1,1.32841]
[1752289078018,4.1136,2958.2,2958.1,3.17511]
[1752289078319,5.00414324,2958.2,2958.1,3.17511]
[1752289078516,4.7343,2958.2,2958.1,3.17511]
[1752289080716,1.5265,2958.2,2958.1,3.17511]
[1752289081316,2.4524,2958.2,2958.1,3.17511]
[1752289085320,5.6602,2958.2,2958.1,3.17511]
[1752289085519,6.33598,2958.2,2958.1,2.23551]
[1752289085717,6.33598,2958.2,2958.1,1.5597]
[1752289086415,5.6602,2958.2,2958.1,2.23551]
[1752289087019,6.33598,2958.2,2958.1,2.23551]
[1752289087220,5.6602,2958.2,2958.1,2.23551]
[1752289088221,6.33598,2958.2,2958.1,2.23551]
[1752289088422,5.6602,2958.2,2958.1,2.23551]
[1752289088629,6.33598,2958.2,2958.1,0.6526]
[1752289088817,3.12823,2958.0,2957.9,1.56477434]
[1752289089213,3.12823,2958.0,2957.9,0.65767434]
[1752289091223,3.12823,2958.0,2957.9,1.56477434]
[1752289094028,2.4524,2958.0,2957.9,2.24062434]
[1752289094217,2.4524,2958.0,2957.9,4.46377659]
[1752289094421,0.6207,2958.0,2957.9,4.46377659]
[1752289094621,0.9058,2958.0,2957.9,4.46377659]
[1752289094823,5.6676,2958.2,2958.1,3.16851]
[1752289095426,5.6676,2958.2,2958.1,2.22891]
[1752289096626,2.4598,2958.2,2958.1,2.22891]
[1752289097927,3.35282823,2958.2,2958.1,2.22891]
[1752289098229,4.02860823,2958.2,2958.1,2.22891]
[1752289098429,4.02860823,2958.2,2958.1,1.5531]
[1752289102744,3.35282823,2958.2,2958.1,2.22891]
[1752289103747,4.02860823,2958.2,2958.1,2.22891]
[1752289104246,3.35282823,2958.2,2958.1,2.22891]
[1752289104438,3.35282823,2958.2,2958.1,1.5531]
[1752289105044,3.35282823,2958.2,2958.1,2.22891]
[1752289105441,3.35282823,2958.2,2958.1,3.19781]
[1752289105642,3.35282823,2958.2,2958.1,2.22891]
[1752289113353,3.35282823,2958.2,2958.1,3.19781]
[1752289116054,3.35282823,2958.2,2958.1,2.22891]
[1752289118458,3.35282823,2958.2,2958.1,3.19781]
[1752289119457,3.35282823,2958.2,2958.1,2.22891]
[1752289120357,3.35282823,2958.2,2958.1,3.19781]
[1752289121258,2.4598,2958.2,2958.1,3.19781]
[1752289123258,3.35332414,2958.2,2958.1,3.19781]
[1752289128062,3.35332414,2958.2,2958.1,2.22891]
[1752289128763,3.35332414,2958.2,2958.1,2.32141]
[1752289132766,3.35332414,2958.2,2958.1,3.30711]
[1752289134766,3.35332414,2958.2,2958.1,4.3209985]
[1752289137971,4.02910414,2958.2,2958.1,2.6594885]
[1752289138172,7.23690414,2958.2,2958.1,1.6456]
[1752289140469,0.89352414,2958.2,2958.1,4.3209985]
[1752289140671,1.20792651,2958.7,2958.6,0.67569]
[1752289140870,0.948,2958.7,2958.6,2.3484785]
[1752289141174,0.948,2958.7,2958.6,4.3259785]
[1752289142774,0.948,2958.7,2958.6,4.60198131]
[1752289143475,1.8662,2958.6,2958.4,0.9918]
[1752289143676,4.7814,2958.5,2958.4,2.32644]
[1752289143975,5.6996,2958.5,2958.4,2.32644]
[1752289144970,5.6996,2958.5,2958.4,3.31214]
[1752289146780,5.6996,2958.5,2958.4,2.32644]
[1752289148173,2.4918,2958.5,2958.4,2.32644]
[1752289151081,2.4918,2958.5,2958.4,3.31214]
[1752289152276,1.5736,2958.5,2958.4,3.31214]
[1752289153479,2.4687,2958.5,2958.4,3.31214]
[1752289155975,2.4687,2958.5,2958.4,2.32644]
[1752289157478,2.4687,2958.5,2958.4,3.28124]
[1752289158185,2.4687,2958.5,2958.4,2.32644]
[1752289158377,3.8334,2958.5,2958.0,0.9571]
[1752289158582,2.4733,2958.1,2958.0,2.23463]
[1752289158878,2.4733,2958.1,2958.0,1.5588]
[1752289159180,2.4733,2958.1,2958.0,2.23463]
[1752289161186,2.4733,2958.1,2958.0,1.5588]
[1752289162086,2.4733,2958.1,2958.0,2.23463]
[1752289163486,2.4733,2958.1,2958.0,4.47932131]
[1752289167089,1.5782,2958.1,2958.0,4.47932131]
[1752289167783,3.2078,2958.2,2958.1,0.67581]
[1752289167987,0.9755,2958.2,2958.1,3.18941]
[1752289175895,3.8105,2958.4,2958.3,0.67576]
[1752289176197,4.786,2958.4,2958.3,4.47925131]
[1752289176399,1.5782,2958.4,2958.3,4.47925131]
[1752289177193,2.4733,2958.4,2958.3,4.47925131]
[1752289179704,2.4733,2958.4,2958.3,3.80349131]
[1752289180202,2.4733,2958.4,2958.3,4.47925131]
[1752289185608,2.4733,2958.4,2958.3,3.80349131]
[1752289187204,2.4733,2958.4,2958.3,2.84869131]
[1752289187409,3.14904,2958.4,2958.3,1.5588]
[1752289187810,6.35684,2958.4,2958.3,1.5588]
[1752289188107,2.5142,2958.2,2958.1,1.89229131]
[1752289188508,2.5142,2958.2,2958.1,2.81579131]
[1752289190410,3.18998,2958.2,2958.1,2.81579131]
[1752289191110,2.5142,2958.2,2958.1,2.81579131]
[1752289192010,3.18998,2958.2,2958.1,2.81579131]
[1752289193414,1.27603,2958.0,2957.9,1.53097434]
[1752289193615,3.19003,2958.0,2957.9,1.53097434]
[1752289197617,2.5142,2958.0,2957.9,1.53097434]
[1752289197811,2.5142,2958.0,2957.9,2.20682434]
[1752289198016,3.19003,2958.0,2957.9,1.53097434]
[1752289198317,2.5142,2958.0,2957.9,1.53097434]
[1752289198714,3.19003,2958.0,2957.9,1.53097434]
[1752289200117,3.19003,2958.0,2957.9,0.00507434]
[1752289200316,0.6002,2957.6,2957.5,1.5259]
[1752289200621,3.19012,2957.6,2957.5,1.5259]
[1752289201013,1.27617,2957.4,2957.3,1.89229131]
[1752289201214,1.27621,2957.2,2957.1,1.89229131]
[1752289201420,2.5142,2957.2,2957.1,2.81579131]
[1752289201618,2.5142,2957.2,2957.1,3.79459131]
[1752289201815,2.5142,2957.1,2957.0,1.5259]
[1752289202015,0.9357,2957.3,2957.0,2.5047]
[1752289202215,3.21287434,2957.4,2956.8,7.5153371]
[1752289202216,0.00507434,2957.4,2957.2,1.89229131]
[1752289202417,0.00507434,2957.4,2957.3,3.18069]
[1752289202820,2.51927434,2957.4,2957.3,4.47058131]
[1752289203114,1.58357434,2957.4,2957.3,4.47058131]
[1752289203320,0.00507434,2957.4,2957.3,4.47058131]
[1752289204012,0.98337434,2957.4,2957.3,4.47058131]
[1752289205021,2.51927434,2957.4,2957.3,4.47058131]
[1752289206019,2.51927434,2957.4,2957.3,1.5259]
[1752289207121,2.51927434,2957.4,2957.2,1.59951]
[1752289207122,1.914,2957.3,2957.2,1.59951]
[1752289207320,2.5142,2957.3,2957.2,2.20191]
[1752289208922,2.5142,2957.3,2957.2,1.27841]
[1752289209123,2.5142,2957.3,2957.2,2.20191]
[1752289209324,1.5785,2957.3,2957.2,3.18071]
[1752289209923,0.9783,2957.3,2957.2,3.18071]
[1752289210424,2.5142,2957.3,2957.2,3.18071]
[1752289211923,2.5142,2957.3,2957.2,2.20191]
[1752289212325,2.5142,2957.3,2957.2,1.27841]
[1752289212524,2.5142,2957.3,2957.2,0.67601]
[1752289212724,0.9783,2957.1,2956.8,3.2078]
[1752289212926,2.5142,2957.0,2956.8,0.9235]
[1752289213125,3.2078,2957.1,2956.8,2.20199]
[1752289213126,2.5448,2956.9,2956.8,2.20199]
[1752289213720,0.9783,2956.9,2956.8,4.47068131]
[1752289214325,0.9783,2957.1,2957.0,3.21806]
[1752289214519,2.58507434,2957.4,2957.3,2.23919]
[1752289214724,2.58507434,2957.4,2957.3,3.52908131]
[1752289218424,2.58507434,2957.4,2957.3,4.45528131]
[1752289221023,2.58507434,2957.4,2957.3,3.52908131]
[1752289226027,5.79287434,2957.4,2957.3,0.67599]
[1752289227419,6.46884434,2957.4,2957.3,0.67599]
[1752289227725,5.79287434,2957.4,2957.3,0.67599]
[1752289228826,6.46884434,2957.4,2957.3,0.67599]
[1752289229021,0.6354,2957.1,2957.0,0.6101]
[1752289229228,2.5785,2956.5,2956.4,2.23939]
[1752289230430,2.5785,2956.5,2956.4,4.45548131]
[1752289230831,5.7863,2956.7,2956.6,2.23935]
[1752289231026,5.7863,2956.7,2956.6,3.16555]
[1752289231526,4.82,2956.7,2956.6,3.16555]
[1752289232124,5.7863,2956.7,2956.6,3.16555]
[1752289232627,5.7863,2956.7,2956.6,2.23935]
[1752289237238,5.7863,2956.7,2956.6,0.67615]
[1752289237638,2.5785,2956.6,2956.4,1.62928]
[1752289237835,3.25467,2956.5,2956.1,1.28989131]
[1752289238038,4.8095,2956.3,2956.2,2.23944]
[1752289238337,5.7863,2956.3,2956.2,1.28634]
[1752289238635,2.5785,2956.3,2956.2,3.16564]
[1752289239734,4.8095,2956.6,2956.5,3.16557]
[1752289239940,4.8095,2956.6,2956.5,4.45546131]
[1752289240238,5.7863,2956.6,2956.5,4.45546131]
[1752289243942,5.7863,2956.6,2956.5,3.16557]
[1752289247847,4.82,2956.6,2956.5,3.16557]
[1752289248242,4.1846,2956.6,2956.5,3.16557]
[1752289248548,3.2078,2956.6,2956.5,3.16557]
[1752289251347,4.1662,2956.6,2956.5,3.16557]
[1752289252448,3.2078,2956.6,2956.5,3.16557]
[1752289253745,4.1662,2956.6,2956.5,3.16557]
[1752289257555,3.2078,2956.6,2956.5,3.16557]
[1752289260658,0.9584,2956.8,2956.7,0.67613]
[1752289260863,4.8061,2956.8,2956.7,3.52452131]
[1752289261063,5.7966,2956.8,2956.7,4.45712131]
[1752289270365,0.9584,2957.0,2956.9,3.16718]
[1752289270761,0.9584,2957.0,2956.7,4.49769131]
[1752289270762,4.84327434,2957.4,2957.3,1.27779]
[1752289270966,5.72899131,2957.4,2957.3,3.16709]
[1752289271567,1.63547434,2957.4,2957.3,3.16709]
[1752289272862,2.59387434,2957.4,2957.3,3.16709]
[1752289273371,0.00507434,2957.4,2957.3,3.16709]
[1752289273773,2.51987434,2957.4,2957.3,3.16709]
[1752289278974,5.6765,2957.8,2957.7,3.1551]
[1752289279173,5.6765,2957.8,2957.7,4.44499131]
[1752289281378,1.5522,2958.0,2957.9,3.15505]
[1752289282280,0.9446,2958.0,2957.9,3.15505]
[1752289282478,0.9446,2958.0,2957.9,6.36285]
[1752289282875,0.6076,2958.6,2958.4,0.9102]
[1752289283076,1.5522,2958.5,2958.4,2.60881131]
[1752289283272,1.5522,2958.5,2958.4,3.51901131]
[1752289283478,2.4687,2958.5,2958.4,3.51901131]
[1752289284082,2.4687,2958.5,2958.4,4.44481131]
[1752289284878,1.5522,2958.5,2958.4,4.44481131]
[1752289285677,2.4687,2958.5,2958.4,4.44481131]
[1752289286581,1.5522,2958.5,2958.4,4.44481131]
[1752289286878,3.2078,2958.7,2958.4,3.76909131]
[1752289287080,1.5522,2958.7,2958.6,3.15489]
[1752289289382,2.4687,2958.7,2958.6,1.5534]
[1752289289675,2.4687,2958.7,2958.6,2.22909]
[1752289289882,2.4687,2958.7,2958.6,3.15489]
[1752289293777,0.6076,2958.9,2958.8,2.4792]
[1752289293984,0.6076,2958.9,2958.8,4.44474131]
[1752289294986,0.6076,2958.9,2958.8,3.76909131]
[1752289295386,1.5241,2958.9,2958.8,3.76909131]
[1752289295888,2.4687,2958.9,2958.8,3.76909131]
[1752289296389,2.4687,2958.9,2958.8,4.44474131]
[1752289296988,1.5522,2958.9,2958.8,4.44474131]
[1752289301391,0.6076,2958.9,2958.8,4.44474131]
[1752289301787,1.5522,2958.9,2958.8,4.44474131]
[1752289302387,2.4687,2958.9,2958.8,4.44474131]
[1752289302990,1.5522,2958.9,2958.8,4.44474131]
[1752289305492,0.6076,2958.9,2958.8,4.44474131]
[1752289307391,1.5018,2959.1,2959.0,1.3048]
[1752289307597,0.5969,2959.1,2959.0,3.2198]
[1752289308001,1.5018,2959.1,2959.0,3.2198]
[1752289308303,2.4048,2959.1,2959.0,3.2198]
[1752289309102,1.5018,2959.1,2959.0,6.4276]
[1752289309503,0.5969,2959.1,2959.0,6.4276]
[1752289312901,1.5018,2959.3,2959.2,1.30476]
[1752289313106,2.38556986,2959.3,2959.2,4.50965131]
[1752289314613,0.88376986,2959.3,2959.2,4.50965131]
[1752289316215,0.5969,2959.4,2959.3,1.30472]
[1752289316416,2.38612536,2959.4,2959.3,3.21972]
[1752289317116,1.48122536,2959.4,2959.3,6.42752]
[1752289317616,0.5969,2959.4,2959.3,6.42752]
[1752289317822,1.5018,2959.6,2959.5,1.30469]
[1752289318024,2.38611065,2959.6,2959.5,4.50958131]
[1752289318220,1.48121065,2959.6,2959.5,4.50958131]
[1752289320522,0.5969,2959.6,2959.5,4.50958131]
[1752289320918,1.5018,2959.8,2959.7,2.23014]
[1752289321115,2.38603293,2959.8,2959.7,3.21742762]
[1752289321324,3.28903293,2959.8,2959.7,3.21742762]
[1752289322525,2.4048,2959.8,2959.7,3.21742762]
[1752289324430,1.5018,2959.8,2959.7,3.21742762]
[1752289324729,0.5969,2959.8,2959.7,3.21742762]
[1752289324919,1.8079,2960.0,2959.9,0.6754]
[1752289325125,3.28850567,2960.0,2959.9,3.58399131]
[1752289325318,2.4048,2960.0,2959.9,4.50949131]
[1752289325629,3.28820615,2960.0,2959.9,4.50949131]
[1752289325827,3.28820615,2960.0,2959.7,0.9895]
[1752289326026,2.4048,2959.9,2959.8,3.21962]
[1752289328132,2.4048,2959.9,2959.8,2.5442]
[1752289328330,3.0802,2959.9,2959.8,2.5442]
[1752289329132,2.4048,2959.9,2959.8,3.21962]
[1752289329329,3.0802,2959.9,2959.8,1.915]
[1752289329536,3.0802,2959.9,2959.8,0.9255]
[1752289329737,3.0802,2959.9,2959.8,1.915]
[1752289330425,3.96336689,2959.9,2959.8,1.915]
[1752289332434,3.28796689,2959.9,2959.8,3.21962]
[1752289332633,2.4048,2959.9,2959.8,3.21962]
[1752289333937,1.5018,2959.9,2959.8,3.21962]
[1752289334335,0.5969,2959.9,2959.8,3.21962]
[1752289334834,1.5035,2960.1,2960.0,1.29617]
[1752289335036,1.48155597,2960.1,2960.0,4.54126131]
[1752289335334,0.88295597,2960.1,2960.0,7.74906131]
[1752289335530,1.5728,2960.6,2960.5,3.16556]
[1752289335830,2.45594499,2960.6,2960.5,4.45545131]
[1752289336236,0.5986,2960.6,2960.5,4.45545131]
[1752289336434,0.5986,2960.7,2960.6,0.6208]
[1752289336635,2.3911388,2960.7,2960.6,1.5865]
[1752289336940,1.5081,2960.5,2960.4,0.6208]
[1752289337137,2.18336,2960.5,2960.4,0.9657]
[1752289337337,0.5986,2960.3,2960.2,2.19993]
[1752289337638,2.4823,2960.3,2960.2,2.19993]
[1752289337934,2.4823,2960.3,2960.2,3.16563]
[1752289338335,2.4823,2960.3,2960.2,2.4903]
[1752289339439,2.4823,2960.3,2960.2,3.16563]
[1752289340442,1.5728,2960.3,2960.2,3.16563]
[1752289340738,1.5728,2960.3,2960.2,4.45552131]
[1752289341135,0.5986,2960.3,2960.2,4.45552131]
[1752289343037,1.5728,2960.7,2960.6,1.29604]
[1752289343342,1.5728,2960.7,2960.6,4.45543131]
[1752289343543,2.4823,2960.7,2960.6,4.45543131]
[1752289344342,0.5986,2960.8,2960.7,0.6208]
[1752289344644,1.5728,2960.8,2960.7,3.16551]
[1752289345934,2.4823,2960.8,2960.7,3.16551]
[1752289351243,1.5728,2960.8,2960.7,3.16551]
[1752289351448,0.5986,2960.8,2960.7,3.16551]
[1752289355151,0.5986,2961.0,2960.9,3.16547]
[1752289355350,0.5986,2961.0,2960.9,4.45536131]
[1752289356644,3.2078,2961.1,2961.0,0.67514]
[1752289356841,4.7806,2961.4,2961.3,1.29588]
[1752289357045,6.57267115,2961.4,2961.3,4.45527131]
[1752289357443,5.66317115,2961.4,2961.3,4.45527131]
[1752289357842,6.57267115,2961.4,2961.3,2.4903]
[1752289358750,6.57267115,2961.4,2961.3,3.16538]
[1752289359153,5.66317115,2961.4,2961.3,3.16538]
[1752289359553,6.57267115,2961.4,2961.3,3.16538]
[1752289359856,3.36487115,2961.4,2961.3,3.16538]
[1752289360155,2.4823,2961.4,2961.3,3.16538]
[1752289360558,2.4823,2961.7,2961.6,2.4903]
[1752289360856,3.36492899,2961.7,2961.6,2.4903]
[1752289361451,3.36492899,2961.7,2961.6,0.9657]
[1752289361452,4.03991899,2961.7,2961.6,0.9657]
[1752289362856,3.36492899,2961.7,2961.6,2.54451]
[1752289363158,3.36492899,2961.7,2961.6,3.16531]
[1752289363361,4.03991899,2961.7,2961.6,2.4903]
[1752289368159,4.03991899,2961.7,2961.6,0.9657]
[1752289369068,0.6503,2961.5,2961.4,3.16853]
[1752289369260,2.5528,2961.5,2961.4,3.16853]
[1752289370656,2.5528,2961.5,2961.0,3.2078]
[1752289370861,2.27984,2961.0,2960.9,1.8668]
[1752289371062,2.5528,2961.0,2960.9,1.8668]
[1752289371261,2.5528,2961.0,2960.9,2.4935]
[1752289371658,2.5528,2961.0,2960.9,3.16867]
[1752289372060,3.22794,2961.0,2960.9,2.4935]
[1752289372264,2.5528,2961.0,2960.9,3.16867]
[1752289372460,3.22794,2961.0,2960.9,2.4935]
[1752289373463,2.5528,2961.0,2960.9,3.16867]
[1752289377973,1.6047,2961.0,2960.9,3.16867]
[1752289380772,2.5528,2961.0,2960.9,3.16867]
[1752289381173,1.6047,2961.0,2960.9,3.16867]
[1752289382175,2.5528,2961.0,2960.9,3.16867]
[1752289383674,1.6047,2961.0,2960.9,3.16867]
[1752289386781,2.5528,2961.0,2960.9,3.16867]
[1752289390075,0.67512,2961.2,2961.0,0.67514]
[1752289390279,3.2078,2961.4,2961.0,4.45853131]
[1752289390280,0.6503,2961.1,2961.0,4.45853131]
[1752289390480,1.53394145,2961.2,2961.1,2.26012]
[1752289390681,1.53394145,2961.2,2961.1,3.16862]
[1752289390882,2.48834145,2961.2,2961.1,3.16862]
[1752289391584,3.16344145,2961.2,2961.1,3.16862]
[1752289392281,2.48834145,2961.2,2961.1,3.16862]
[1752289395085,1.53394145,2961.2,2961.1,3.16862]
[1752289395285,0.88364145,2961.2,2961.1,3.16862]
[1752289396084,0.88364145,2961.2,2961.1,6.37642]
[1752289396384,0.6505,2961.6,2961.5,3.19263]
[1752289396585,0.6505,2961.6,2961.5,4.48252131]
[1752289396785,1.5354356,2961.6,2961.5,4.48252131]
[1752289397388,0.8849356,2961.6,2961.5,4.48252131]
[1752289397881,1.8169592,2962.2,2962.1,1.27179]
[1752289397882,1.85842651,2962.2,2962.1,1.27179]
[1752289398085,1.5607,2962.2,2962.1,3.19249]
[1752289398490,2.5384,2962.2,2962.1,3.19249]
[1752289398685,2.5384,2962.2,2962.1,2.5176]
[1752289398883,2.5384,2962.2,2962.1,3.19249]
[1752289399788,2.5384,2962.2,2962.1,2.5176]
[1752289400486,3.21327,2962.2,2962.1,2.5176]
[1752289402382,1.5607,2962.2,2962.1,3.19249]
[1752289402989,1.5607,2962.2,2962.1,2.5176]
[1752289403192,0.6505,2962.2,2962.1,3.19249]
[1752289404281,2.56273,2962.4,2962.2,3.19247]
[1752289404282,0.6505,2962.3,2962.2,3.19247]
[1752289404486,1.5607,2962.3,2962.2,1.27177]
[1752289404791,2.23555,2962.3,2962.2,2.5176]
[1752289405083,3.21325,2962.3,2962.2,2.5176]
[1752289418404,3.21325,2962.3,2962.2,0.9829]
[1752289418607,3.21332,2962.0,2961.9,1.9207]
[1752289418807,3.21332,2962.0,2961.9,2.5176]
[1752289420208,3.21332,2962.0,2961.6,0.675]
[1752289420209,2.23571,2961.6,2961.5,3.8047]
[1752289420411,3.21341,2961.6,2961.5,3.8047]
[1752289420610,3.21341,2961.6,2961.5,0.5969]
[1752289420811,3.21341,2961.6,2961.5,2.5176]
[1752289426414,3.21341,2961.6,2961.5,0.9829]
[1752289427712,3.21341,2961.6,2961.5,1.9382]
[1752289428613,3.21341,2961.6,2961.5,2.5934]
[1752289430915,2.5384,2961.6,2961.5,3.26843]
[1752289431112,3.21341,2961.6,2961.5,2.5934]
[1752289432014,3.21341,2961.6,2961.5,3.26843]
[1752289432415,3.21341,2961.6,2961.5,2.5934]
[1752289438624,1.5637,2961.2,2961.1,2.5795]
[1752289438817,2.5374,2961.2,2961.1,2.5795]
[1752289439624,2.5374,2961.2,2961.1,3.25461]
[1752289440418,1.5637,2961.2,2961.1,3.25461]
[1752289441522,2.2388,2961.2,2961.1,3.25461]
[1752289441826,1.5637,2961.2,2961.1,3.25461]
[1752289442125,3.2125,2961.2,2961.1,3.25461]
[1752289442625,1.5637,2961.2,2961.1,3.25461]
[1752289443023,1.5637,2961.2,2961.1,4.54450131]
[1752289449536,2.2388,2961.2,2961.1,4.54450131]
[1752289449737,1.5637,2961.2,2961.1,3.25461]
[1752289449932,2.5374,2961.2,2961.1,3.25461]
[1752289451128,0.6168,2961.3,2961.2,0.6552]
[1752289451439,0.6168,2961.3,2961.2,4.54449131]
[1752289452439,2.44450181,2961.3,2961.2,4.54449131]
[1752289452735,0.6751,2961.2,2960.9,3.2078]
[1752289452936,1.5637,2961.0,2960.9,4.53817]
[1752289453137,2.5374,2961.0,2960.9,4.53817]
[1752289453440,2.5374,2961.0,2960.9,6.44617]
[1752289453735,3.21255,2961.0,2960.9,5.771]
[1752289453938,2.5374,2961.0,2960.9,3.23837]
[1752289454240,2.5374,2961.0,2960.9,2.5632]
[1752289454435,3.21255,2961.0,2960.9,2.5632]
[1752289455041,3.21255,2961.0,2960.9,3.23837]
[1752289455042,3.41783464,2961.0,2960.9,3.23837]
[1752289455539,4.09298464,2961.0,2960.9,2.5632]
[1752289456340,3.21255,2961.0,2960.9,2.5632]
[1752289458142,2.5374,2961.0,2960.9,3.23837]
[1752289458342,3.21255,2961.0,2960.9,3.23837]
[1752289458639,3.21255,2961.0,2960.9,2.5632]
[1752289459942,3.21255,2961.0,2960.9,3.23837]
[1752289460143,3.21255,2961.0,2960.9,2.5632]
[1752289460842,1.5637,2961.0,2960.9,4.52826131]
[1752289461942,2.23885,2961.0,2960.9,3.85309131]
[1752289462337,1.5637,2961.0,2960.9,3.85309131]
[1752289462642,1.5637,2961.0,2960.9,4.52826131]
[1752289463446,2.23885,2961.0,2960.9,2.5632]
[1752289463739,1.5637,2961.0,2960.9,3.23837]
[1752289468348,2.23885,2961.0,2960.9,3.23837]
[1752289468540,1.5637,2961.0,2960.9,2.5632]
[1752289468846,1.5637,2961.0,2960.9,3.23837]
[1752289469246,1.5637,2961.0,2960.9,2.5632]
[1752289469546,2.23885,2961.0,2960.9,2.5632]
[1752289470044,3.21855,2961.0,2960.9,2.5632]
[1752289474346,2.23885,2961.0,2960.9,2.5632]
[1752289474643,3.21855,2961.0,2960.9,2.5632]
[1752289477550,2.5434,2961.0,2960.9,3.23837]
[1752289477750,3.21855,2961.0,2960.9,3.23837]
[1752289478453,3.21855,2961.0,2960.9,2.5632]
[1752289479553,0.6168,2961.0,2960.9,6.44617]
[1752289479758,1.539,2961.4,2961.3,1.5839]
[1752289479958,2.4190159,2961.4,2961.3,3.17658]
[1752289480252,0.8800159,2961.4,2961.3,3.17658]
[1752289482257,0.6015,2961.7,2961.6,1.31989]
[1752289482453,0.6015,2961.7,2961.6,3.17649]
[1752289482454,1.48153833,2961.7,2961.6,3.17649]